[Event "January 9 Early 2024"]
[Site "https://www.chess.com"]
[Date "2024.01.11"]
[Round "3"]
[White "Omelja, Artem"]
[Black "Herman, Daniel"]
[Result "1-0"]
[Board "75"]
[TimeControl "180+1"]
[WhiteFideId "14119846"]
[BlackFideId "30935008"]
[WhiteElo "2629"]
[BlackElo "2429"]
[WhiteTeam "UKR"]
[BlackTeam "USA"]
[WhiteClock "0:02:40"]
[BlackClock "0:00:29"]

1. d4 {[%clk 0:02:55]}  Nf6 {[%clk 0:02:55]} 2. c4 {[%clk 0:02:56]}  g6 {[%clk 0:02:55]} 3. Nc3 {[%clk 0:02:56]}  d5 {[%clk 0:02:56]} 4. cxd5 {[%clk 0:02:52]}  Nxd5 {[%clk 0:02:57]} 5. Nf3 {[%clk 0:02:51]}  Bg7 {[%clk 0:02:56]} 6. Bg5 {[%clk 0:02:51]}  O-O {[%clk 0:02:49]} 7. Rc1 {[%clk 0:02:51]}  c5 {[%clk 0:02:44]} 8. Nxd5 {[%clk 0:02:51]}  Qxd5 {[%clk 0:02:43]} 9. Bxe7 {[%clk 0:02:51]}  Re8 {[%clk 0:02:33]} 10. Bxc5 {[%clk 0:02:52]}  Qxa2 {[%clk 0:02:15]} 11. Qd2 {[%clk 0:02:50]}  Nc6 {[%clk 0:02:09]} 12. e3 {[%clk 0:02:50]}  Bg4 {[%clk 0:02:07]} 13. Be2 {[%clk 0:02:49]}  Rac8 {[%clk 0:01:45]} 14. O-O {[%clk 0:02:48]}  Qd5 {[%clk 0:01:43]} 15. h3 {[%clk 0:02:47]}  Bf5 {[%clk 0:01:35]} 16. Ng5 {[%clk 0:02:46]}  h6 {[%clk 0:01:27]} 17. Bc4 {[%clk 0:02:45]}  Qxc4 {[%clk 0:01:20]} 18. Rxc4 {[%clk 0:02:46]}  hxg5 {[%clk 0:01:20]} 19. Rfc1 {[%clk 0:02:44]}  Rcd8 {[%clk 0:01:15]} 20. b4 {[%clk 0:02:42]}  a6 {[%clk 0:01:14]} 21. Bb6 {[%clk 0:02:40]}  Rd7 {[%clk 0:01:10]} 22. Rc5 {[%clk 0:02:40]}  g4 {[%clk 0:01:02]} 23. hxg4 {[%clk 0:02:37]}  Bxg4 {[%clk 0:01:03]} 24. b5 {[%clk 0:02:37]}  axb5 {[%clk 0:01:02]} 25. Rxb5 {[%clk 0:02:38]}  Bh6 {[%clk 0:00:56]} 26. d5 {[%clk 0:02:33]}  Ne5 {[%clk 0:00:46]} 27. Bd4 {[%clk 0:02:32]}  f5 {[%clk 0:00:32]} 28. d6 {[%clk 0:02:31]}  Nf7 {[%clk 0:00:29]} 29. Qa2 {[%clk 0:02:28]}  f4 {[%clk 0:00:23]} 30. Rc7 {[%clk 0:02:26]}  Be6 {[%clk 0:00:14]} 31. Qxe6 {[%clk 0:02:24]}  Rxe6 {[%clk 0:00:14]} 32. Rxd7 {[%clk 0:02:25]}  Nxd6 {[%clk 0:00:13]} 33. Rb6 {[%clk 0:02:24]}  Bf8 {[%clk 0:00:11]} 34. Bc5 {[%clk 0:02:23]}  Nc4 {[%clk 0:00:11]} 35. Rxe6 {[%clk 0:02:22]}  Bxc5 {[%clk 0:00:10]} 36. Re8+ {[%clk 0:02:23]}  Bf8 {[%clk 0:00:10]} 37. Rdd8 {[%clk 0:02:24]}  Kf7 {[%clk 0:00:09]} 38. Rxf8+ {[%clk 0:02:25]}  Ke6 {[%clk 0:00:09]} 39. Rxf4 {[%clk 0:02:25]}  b5 {[%clk 0:00:10]} 40. Rxc4 {[%clk 0:02:24]}  bxc4 {[%clk 0:00:10]} 41. Kf1 {[%clk 0:02:25]}  Ke5 {[%clk 0:00:10]} 42. Rd4 {[%clk 0:02:25]}  c3 {[%clk 0:00:09]} 43. Rc4 {[%clk 0:02:26]}  Kd5 {[%clk 0:00:08]} 44. Rxc3 {[%clk 0:02:26]}  Ke4 {[%clk 0:00:09]} 45. Rc4+ {[%clk 0:02:27]}  Kd3 {[%clk 0:00:09]} 46. Rg4 {[%clk 0:02:27]}  Kd2 {[%clk 0:00:08]} 47. Rxg6 {[%clk 0:02:28]}  Kd3 {[%clk 0:00:09]} 48. Re6 {[%clk 0:02:28]}  Kd2 {[%clk 0:00:09]} 49. f4 {[%clk 0:02:29]}  Kd3 {[%clk 0:00:10]} 50. f5 {[%clk 0:02:30]}  Kd2 {[%clk 0:00:10]} 51. g4 {[%clk 0:02:31]}  Kd3 {[%clk 0:00:11]} 52. g5 {[%clk 0:02:32]}  Kd2 {[%clk 0:00:12]} 53. g6 {[%clk 0:02:33]}  Kd3 {[%clk 0:00:13]} 54. g7 {[%clk 0:02:34]}  Kd2 {[%clk 0:00:14]} 55. g8=Q {[%clk 0:02:34]}  Kd3 {[%clk 0:00:15]} 56. Qf7 {[%clk 0:02:35]}  Kd2 {[%clk 0:00:15]} 57. Qe7 {[%clk 0:02:36]}  Kd1 {[%clk 0:00:16]} 58. f6 {[%clk 0:02:37]}  Kd2 {[%clk 0:00:17]} 59. f7 {[%clk 0:02:38]}  Kd3 {[%clk 0:00:18]} 60. f8=Q {[%clk 0:02:38]}  Kd2 {[%clk 0:00:19]} 61. Qfd8+ {[%clk 0:02:39]}  Kc2 {[%clk 0:00:19]} 62. Qec7+ {[%clk 0:02:40]}  Kb3 {[%clk 0:00:20]} 63. Rb6+ {[%clk 0:02:40]}  Ka2 {[%clk 0:00:20]} 64. Qd5+ {[%clk 0:02:41]}  Ka1 {[%clk 0:00:20]} 65. Qd4+ {[%clk 0:02:40]}  Ka2 {[%clk 0:00:20]} 66. Qf7+ {[%clk 0:02:40]}  Ka3 {[%clk 0:00:21]} 67. Qc3+ {[%clk 0:02:38]}  Ka4 {[%clk 0:00:21]} 68. Rb4+ {[%clk 0:02:39]}  Ka5 {[%clk 0:00:21]} 69. e4 {[%clk 0:02:38]}  Ka6 {[%clk 0:00:22]} 70. e5 {[%clk 0:02:38]}  Ka5 {[%clk 0:00:22]} 71. e6 {[%clk 0:02:39]}  Ka6 {[%clk 0:00:23]} 72. e7 {[%clk 0:02:40]}  Ka5 {[%clk 0:00:24]} 73. e8=Q {[%clk 0:02:40]}  Ka6 {[%clk 0:00:25]} 74. Ke2 {[%clk 0:02:39]}  Ka5 {[%clk 0:00:26]} 75. Kd3 {[%clk 0:02:39]}  Ka6 {[%clk 0:00:27]} 76. Kc4 {[%clk 0:02:40]}  Ka5 {[%clk 0:00:28]} 77. Kb3 {[%clk 0:02:40]}  Ka6 {[%clk 0:00:28]} 78. Qfc4+ {[%clk 0:02:40]}  Ka5 {[%clk 0:00:29]} 79. Qa4# {[%clk 0:02:40]} 1-0

[Event "January 9 Early 2024"]
[Site "https://www.chess.com"]
[Date "2024.01.11"]
[Round "3"]
[White "Indjic, Aleksandar"]
[Black "Olenik Campa, Rudi"]
[Result "1-0"]
[Board "76"]
[TimeControl "180+1"]
[WhiteFideId "911925"]
[BlackFideId "14633264"]
[WhiteElo "2890"]
[BlackElo "2576"]
[WhiteTeam "SRB"]
[BlackTeam "SLO"]
[WhiteClock "0:00:50"]
[BlackClock "0:00:18"]

1. d4 {[%clk 0:01:58]}  Nf6 {[%clk 0:02:57]} 2. c4 {[%clk 0:01:57]}  g6 {[%clk 0:02:57]} 3. Nc3 {[%clk 0:01:56]}  Bg7 {[%clk 0:02:58]} 4. e4 {[%clk 0:01:56]}  d6 {[%clk 0:02:57]} 5. Be2 {[%clk 0:01:57]}  O-O {[%clk 0:02:58]} 6. Be3 {[%clk 0:01:56]}  Nc6 {[%clk 0:02:58]} 7. d5 {[%clk 0:01:47]}  Ne5 {[%clk 0:02:54]} 8. f4 {[%clk 0:01:48]}  Neg4 {[%clk 0:02:53]} 9. Bd2 {[%clk 0:01:48]}  Nh6 {[%clk 0:02:34]} 10. h3 {[%clk 0:01:46]}  e5 {[%clk 0:02:11]} 11. fxe5 {[%clk 0:01:44]}  dxe5 {[%clk 0:02:12]} 12. g4 {[%clk 0:01:43]}  Ne8 {[%clk 0:01:44]} 13. Nf3 {[%clk 0:01:41]}  f5 {[%clk 0:01:33]} 14. gxf5 {[%clk 0:01:40]}  gxf5 {[%clk 0:01:33]} 15. Qc2 {[%clk 0:01:36]}  fxe4 {[%clk 0:01:31]} 16. Nxe4 {[%clk 0:01:34]}  Bf5 {[%clk 0:01:31]} 17. Rg1 {[%clk 0:01:34]}  Kh8 {[%clk 0:01:19]} 18. O-O-O {[%clk 0:01:16]}  b5 {[%clk 0:01:09]} 19. Rxg7 {[%clk 0:01:13]}  Kxg7 {[%clk 0:01:03]} 20. Rg1+ {[%clk 0:01:13]}  Bg6 {[%clk 0:01:03]} 21. Nxe5 {[%clk 0:01:13]}  Nf5 {[%clk 0:00:47]} 22. Nc5 {[%clk 0:01:04]}  Kh8 {[%clk 0:00:36]} 23. Bc3 {[%clk 0:01:02]}  Neg7 {[%clk 0:00:25]} 24. Nxg6+ {[%clk 0:00:54]}  hxg6 {[%clk 0:00:26]} 25. Ne6 {[%clk 0:00:53]}  Qh4 {[%clk 0:00:18]} 26. Rxg6 {[%clk 0:00:50]} 1-0

[Event "January 9 Early 2024"]
[Site "https://www.chess.com"]
[Date "2024.01.11"]
[Round "3"]
[White "Gutierrez Carmona, Juan Alejandro"]
[Black "Saha, Ananda"]
[Result "0-1"]
[Board "77"]
[TimeControl "180+1"]
[WhiteFideId "5106770"]
[BlackFideId "2619644"]
[WhiteElo "2185"]
[BlackElo "2479"]
[WhiteTeam "MEX"]
[BlackTeam "CAN"]
[WhiteClock "0:00:05"]
[BlackClock "0:01:02"]

1. e4 {[%clk 0:03:00]}  e6 {[%clk 0:02:59]} 2. Qe2 {[%clk 0:02:59]}  c5 {[%clk 0:02:59]} 3. Nf3 {[%clk 0:03:00]}  Nc6 {[%clk 0:02:59]} 4. g3 {[%clk 0:03:00]}  Nge7 {[%clk 0:02:56]} 5. Bg2 {[%clk 0:03:00]}  d5 {[%clk 0:02:56]} 6. d3 {[%clk 0:03:01]}  g6 {[%clk 0:02:56]} 7. O-O {[%clk 0:03:01]}  Bg7 {[%clk 0:02:56]} 8. e5 {[%clk 0:02:37]}  b5 {[%clk 0:02:48]} 9. c4 {[%clk 0:02:35]}  bxc4 {[%clk 0:02:45]} 10. dxc4 {[%clk 0:02:35]}  O-O {[%clk 0:02:43]} 11. Nc3 {[%clk 0:02:30]}  Rb8 {[%clk 0:02:36]} 12. Bg5 {[%clk 0:02:08]}  Ba6 {[%clk 0:01:54]} 13. b3 {[%clk 0:01:40]}  Qa5 {[%clk 0:01:49]} 14. Bd2 {[%clk 0:01:13]}  Qc7 {[%clk 0:01:43]} 15. Rfe1 {[%clk 0:01:09]}  Nf5 {[%clk 0:01:33]} 16. Nb5 {[%clk 0:00:38]}  Bxb5 {[%clk 0:01:24]} 17. cxb5 {[%clk 0:00:39]}  Ncd4 {[%clk 0:01:21]} 18. Qd3 {[%clk 0:00:36]}  Nxf3+ {[%clk 0:01:09]} 19. Bxf3 {[%clk 0:00:34]}  Bxe5 {[%clk 0:01:08]} 20. Rac1 {[%clk 0:00:18]}  Bg7 {[%clk 0:01:07]} 21. Bf4 {[%clk 0:00:14]}  e5 {[%clk 0:01:07]} 22. Bd2 {[%clk 0:00:07]}  e4 {[%clk 0:01:08]} 23. Qxd5 {[%clk 0:00:05]}  exf3 {[%clk 0:01:06]} 24. Rxc5 {[%clk 0:00:05]}  Qd8 {[%clk 0:01:02]} 0-1

[Event "January 9 Early 2024"]
[Site "https://www.chess.com"]
[Date "2024.01.11"]
[Round "3"]
[White "Saim, Mohamed Ilias"]
[Black "Ljukin, Sergei"]
[Result "0-1"]
[Board "78"]
[TimeControl "180+1"]
[WhiteFideId "7900465"]
[BlackFideId "14102200"]
[WhiteElo "2108"]
[BlackElo "2537"]
[WhiteTeam "ALG"]
[BlackTeam "UKR"]
[WhiteClock "0:00:31"]
[BlackClock "0:00:40"]

1. c4 {[%clk 0:03:00]}  c6 {[%clk 0:02:53]} 2. d4 {[%clk 0:02:57]}  d5 {[%clk 0:02:53]} 3. Nf3 {[%clk 0:02:56]}  Nf6 {[%clk 0:02:54]} 4. e3 {[%clk 0:02:56]}  e6 {[%clk 0:02:54]} 5. Nbd2 {[%clk 0:02:55]}  c5 {[%clk 0:02:53]} 6. Bd3 {[%clk 0:02:41]}  Nc6 {[%clk 0:02:51]} 7. dxc5 {[%clk 0:02:37]}  Bxc5 {[%clk 0:02:50]} 8. cxd5 {[%clk 0:02:37]}  exd5 {[%clk 0:02:51]} 9. Nb3 {[%clk 0:02:33]}  Bd6 {[%clk 0:02:42]} 10. O-O {[%clk 0:02:33]}  Bg4 {[%clk 0:02:42]} 11. Be2 {[%clk 0:02:32]}  O-O {[%clk 0:02:41]} 12. Nbd4 {[%clk 0:02:30]}  Ne4 {[%clk 0:02:39]} 13. b3 {[%clk 0:02:24]}  Nc3 {[%clk 0:02:33]} 14. Qd2 {[%clk 0:02:21]}  Nxe2+ {[%clk 0:02:33]} 15. Qxe2 {[%clk 0:02:22]}  Nxd4 {[%clk 0:02:29]} 16. exd4 {[%clk 0:02:23]}  Qf6 {[%clk 0:02:23]} 17. Qd3 {[%clk 0:02:16]}  Bxf3 {[%clk 0:02:19]} 18. Qxf3 {[%clk 0:02:09]}  Qxd4 {[%clk 0:02:10]} 19. Be3 {[%clk 0:02:08]}  Qe4 {[%clk 0:02:06]} 20. Rfd1 {[%clk 0:01:44]}  Rfd8 {[%clk 0:01:44]} 21. Qh5 {[%clk 0:01:34]}  g6 {[%clk 0:01:27]} 22. Qh6 {[%clk 0:01:29]}  Be5 {[%clk 0:01:22]} 23. Rac1 {[%clk 0:01:27]}  d4 {[%clk 0:01:08]} 24. Rc4 {[%clk 0:01:08]}  dxe3 {[%clk 0:00:54]} 25. Rxd8+ {[%clk 0:00:57]}  Rxd8 {[%clk 0:00:53]} 26. fxe3 {[%clk 0:00:42]}  Rd1+ {[%clk 0:00:41]} 27. Kf2 {[%clk 0:00:42]}  Qf5+ {[%clk 0:00:41]} 28. Rf4 {[%clk 0:00:34]}  Bxf4 {[%clk 0:00:40]} 29. Qg7+ {[%clk 0:00:31]}  Kxg7 {[%clk 0:00:40]} 0-1

[Event "January 9 Early 2024"]
[Site "https://www.chess.com"]
[Date "2024.01.11"]
[Round "3"]
[White "Vokhidov, Shamsiddin"]
[Black "Schnaider, Ilan"]
[Result "1-0"]
[Board "79"]
[TimeControl "180+1"]
[WhiteFideId "14204223"]
[BlackFideId "169013"]
[WhiteElo "3009"]
[BlackElo "2747"]
[WhiteTeam "UZB"]
[BlackTeam "ARG"]
[WhiteClock "0:01:59"]
[BlackClock "0:00:01"]

1. e4 {[%clk 0:03:00]}  c5 {[%clk 0:03:00]} 2. Nf3 {[%clk 0:03:01]}  d6 {[%clk 0:03:00]} 3. d4 {[%clk 0:03:01]}  cxd4 {[%clk 0:03:00]} 4. Nxd4 {[%clk 0:03:00]}  Nf6 {[%clk 0:03:01]} 5. Nc3 {[%clk 0:03:01]}  a6 {[%clk 0:03:01]} 6. a4 {[%clk 0:03:01]}  e5 {[%clk 0:02:59]} 7. Nf3 {[%clk 0:03:02]}  Be7 {[%clk 0:02:56]} 8. Bg5 {[%clk 0:03:02]}  Be6 {[%clk 0:02:56]} 9. Bxf6 {[%clk 0:03:02]}  Bxf6 {[%clk 0:02:57]} 10. Nd5 {[%clk 0:03:03]}  Be7 {[%clk 0:02:47]} 11. Bc4 {[%clk 0:03:02]}  Nc6 {[%clk 0:02:36]} 12. O-O {[%clk 0:03:01]}  O-O {[%clk 0:02:32]} 13. c3 {[%clk 0:02:59]}  Bxd5 {[%clk 0:02:12]} 14. Bxd5 {[%clk 0:02:58]}  Qc7 {[%clk 0:02:06]} 15. Ne1 {[%clk 0:02:57]}  Kh8 {[%clk 0:02:03]} 16. Nc2 {[%clk 0:02:56]}  Bg5 {[%clk 0:02:00]} 17. Qe2 {[%clk 0:02:56]}  Ne7 {[%clk 0:01:38]} 18. Ba2 {[%clk 0:02:56]}  f5 {[%clk 0:01:36]} 19. exf5 {[%clk 0:02:56]}  Rxf5 {[%clk 0:01:37]} 20. Rad1 {[%clk 0:02:55]}  Raf8 {[%clk 0:01:35]} 21. g3 {[%clk 0:02:55]}  Bh6 {[%clk 0:01:30]} 22. Nb4 {[%clk 0:02:53]}  Qc5 {[%clk 0:01:21]} 23. Kg2 {[%clk 0:02:43]}  a5 {[%clk 0:00:52]} 24. Nd5 {[%clk 0:02:41]}  Qc6 {[%clk 0:00:47]} 25. Qe4 {[%clk 0:02:36]}  Nxd5 {[%clk 0:00:45]} 26. Bxd5 {[%clk 0:02:33]}  Qb6 {[%clk 0:00:45]} 27. Qe2 {[%clk 0:02:33]}  g6 {[%clk 0:00:34]} 28. Be4 {[%clk 0:02:33]}  R5f6 {[%clk 0:00:34]} 29. Rd5 {[%clk 0:02:34]}  Kg7 {[%clk 0:00:31]} 30. Rb5 {[%clk 0:02:32]}  Qd8 {[%clk 0:00:27]} 31. Rxb7+ {[%clk 0:02:33]}  R8f7 {[%clk 0:00:25]} 32. Rxf7+ {[%clk 0:02:33]}  Rxf7 {[%clk 0:00:26]} 33. Rd1 {[%clk 0:02:33]}  Qb6 {[%clk 0:00:26]} 34. f3 {[%clk 0:02:32]}  Be3 {[%clk 0:00:24]} 35. b4 {[%clk 0:02:25]}  Rc7 {[%clk 0:00:19]} 36. bxa5 {[%clk 0:02:25]}  Qa7 {[%clk 0:00:14]} 37. Rxd6 {[%clk 0:02:24]}  Rxc3 {[%clk 0:00:14]} 38. Qb5 {[%clk 0:02:24]}  Kh6 {[%clk 0:00:09]} 39. Qxe5 {[%clk 0:02:22]}  Rc1 {[%clk 0:00:05]} 40. Qf6 {[%clk 0:02:10]}  Bg1 {[%clk 0:00:03]} 41. Kh3 {[%clk 0:02:02]}  Qf2 {[%clk 0:00:01]} 42. Qh4+ {[%clk 0:01:58]}  Kg7 {[%clk 0:00:02]} 43. Rd7+ {[%clk 0:01:59]}  Kf8 {[%clk 0:00:01]} 44. Qd8# {[%clk 0:01:59]} 1-0

[Event "January 9 Early 2024"]
[Site "https://www.chess.com"]
[Date "2024.01.11"]
[Round "3"]
[White "Chernomordik, Pavel"]
[Black "Moksh Amit Doshi"]
[Result "1-0"]
[Board "81"]
[TimeControl "180+1"]
[WhiteFideId "2804530"]
[BlackFideId "25064967"]
[WhiteElo "2445"]
[BlackElo "2604"]
[WhiteTeam "ISR"]
[BlackTeam "IND"]
[WhiteClock "0:00:55"]
[BlackClock "0:01:37"]

1. e4 {[%clk 0:03:00]}  c5 {[%clk 0:02:58]} 2. Nc3 {[%clk 0:02:58]}  e6 {[%clk 0:02:55]} 3. f4 {[%clk 0:02:58]}  d5 {[%clk 0:02:53]} 4. Nf3 {[%clk 0:02:58]}  Nc6 {[%clk 0:02:52]} 5. Bb5 {[%clk 0:02:55]}  Nf6 {[%clk 0:02:51]} 6. e5 {[%clk 0:02:55]}  Nd7 {[%clk 0:02:50]} 7. O-O {[%clk 0:02:53]}  Be7 {[%clk 0:02:50]} 8. Re1 {[%clk 0:02:51]}  O-O {[%clk 0:02:50]} 9. Bxc6 {[%clk 0:02:45]}  bxc6 {[%clk 0:02:50]} 10. d3 {[%clk 0:02:44]}  a6 {[%clk 0:02:41]} 11. b3 {[%clk 0:02:41]}  a5 {[%clk 0:02:39]} 12. Na4 {[%clk 0:02:38]}  Ba6 {[%clk 0:02:37]} 13. c4 {[%clk 0:02:37]}  f6 {[%clk 0:02:37]} 14. Bb2 {[%clk 0:02:29]}  fxe5 {[%clk 0:02:36]} 15. fxe5 {[%clk 0:02:28]}  d4 {[%clk 0:02:35]} 16. Qe2 {[%clk 0:02:24]}  Bg5 {[%clk 0:02:29]} 17. Bc1 {[%clk 0:02:14]}  Bxc1 {[%clk 0:02:29]} 18. Raxc1 {[%clk 0:02:14]}  Qe7 {[%clk 0:02:30]} 19. Qe4 {[%clk 0:02:13]}  Bb7 {[%clk 0:02:28]} 20. Rf1 {[%clk 0:02:06]}  Rf5 {[%clk 0:02:28]} 21. g4 {[%clk 0:02:04]}  Rf7 {[%clk 0:02:25]} 22. h4 {[%clk 0:02:03]}  Raf8 {[%clk 0:02:25]} 23. Ng5 {[%clk 0:02:03]}  Rxf1+ {[%clk 0:02:21]} 24. Rxf1 {[%clk 0:02:02]}  g6 {[%clk 0:02:21]} 25. Rxf8+ {[%clk 0:01:58]}  Nxf8 {[%clk 0:02:19]} 26. Qf4 {[%clk 0:01:57]}  h6 {[%clk 0:02:18]} 27. Nf3 {[%clk 0:01:55]}  Kg7 {[%clk 0:02:18]} 28. Qf6+ {[%clk 0:01:49]}  Qxf6 {[%clk 0:02:14]} 29. exf6+ {[%clk 0:01:49]}  Kxf6 {[%clk 0:02:15]} 30. Nxc5 {[%clk 0:01:49]}  Bc8 {[%clk 0:02:16]} 31. Ne4+ {[%clk 0:01:42]}  Kg7 {[%clk 0:02:09]} 32. Nxd4 {[%clk 0:01:40]}  e5 {[%clk 0:02:10]} 33. Nf3 {[%clk 0:01:40]}  Bxg4 {[%clk 0:02:09]} 34. Nxe5 {[%clk 0:01:40]}  Bf5 {[%clk 0:02:10]} 35. Nxc6 {[%clk 0:01:38]}  Ne6 {[%clk 0:02:11]} 36. Kf2 {[%clk 0:01:33]}  g5 {[%clk 0:02:06]} 37. hxg5 {[%clk 0:01:31]}  hxg5 {[%clk 0:02:07]} 38. Ke3 {[%clk 0:01:30]}  g4 {[%clk 0:02:06]} 39. Ng3 {[%clk 0:01:28]}  Kf6 {[%clk 0:02:06]} 40. Nxa5 {[%clk 0:01:27]}  Bg6 {[%clk 0:02:04]} 41. Nc6 {[%clk 0:01:24]}  Kg5 {[%clk 0:02:04]} 42. d4 {[%clk 0:01:22]}  Kh4 {[%clk 0:02:04]} 43. Kf2 {[%clk 0:01:19]}  Nf4 {[%clk 0:02:01]} 44. Ne5 {[%clk 0:01:17]}  Bb1 {[%clk 0:01:58]} 45. a3 {[%clk 0:01:16]}  Kh3 {[%clk 0:01:57]} 46. d5 {[%clk 0:01:07]}  Ba2 {[%clk 0:01:51]} 47. d6 {[%clk 0:01:06]}  Bxb3 {[%clk 0:01:50]} 48. d7 {[%clk 0:01:05]}  Ne6 {[%clk 0:01:50]} 49. Ne4 {[%clk 0:01:00]}  Bc2 {[%clk 0:01:36]} 50. Ng5+ {[%clk 0:00:58]}  Kh2 {[%clk 0:01:36]} 51. Nxe6 {[%clk 0:00:56]}  g3+ {[%clk 0:01:36]} 52. Ke3 {[%clk 0:00:55]}  g2 {[%clk 0:01:37]} 53. Nf3+ {[%clk 0:00:55]} 1-0

[Event "January 9 Early 2024"]
[Site "https://www.chess.com"]
[Date "2024.01.11"]
[Round "3"]
[White "Gonzalez Vega, Alejandro"]
[Black "Murthy, Pappu"]
[Result "1/2-1/2"]
[Board "82"]
[TimeControl "180+1"]
[WhiteFideId "3510042"]
[BlackFideId "2013401"]
[WhiteElo "2296"]
[BlackElo "1899"]
[WhiteTeam "CUB"]
[BlackTeam "USA"]
[WhiteClock "0:00:14"]
[BlackClock "0:00:54"]

1. d4 {[%clk 0:03:00]}  Nf6 {[%clk 0:02:55]} 2. c4 {[%clk 0:03:00]}  e6 {[%clk 0:02:55]} 3. Nc3 {[%clk 0:02:59]}  d5 {[%clk 0:02:54]} 4. cxd5 {[%clk 0:02:58]}  exd5 {[%clk 0:02:54]} 5. Bg5 {[%clk 0:02:59]}  c6 {[%clk 0:02:52]} 6. Qc2 {[%clk 0:02:58]}  h6 {[%clk 0:02:51]} 7. Bh4 {[%clk 0:02:58]}  Bd6 {[%clk 0:02:49]} 8. e3 {[%clk 0:02:56]}  O-O {[%clk 0:02:43]} 9. Bd3 {[%clk 0:02:56]}  a5 {[%clk 0:02:42]} 10. Nge2 {[%clk 0:02:52]}  Na6 {[%clk 0:02:42]} 11. a3 {[%clk 0:02:52]}  Nc7 {[%clk 0:02:42]} 12. Bg3 {[%clk 0:02:42]}  Re8 {[%clk 0:02:37]} 13. O-O {[%clk 0:02:22]}  Bxg3 {[%clk 0:02:28]} 14. Nxg3 {[%clk 0:02:14]}  Ne6 {[%clk 0:02:15]} 15. Rad1 {[%clk 0:02:12]}  Nf8 {[%clk 0:02:12]} 16. Rfe1 {[%clk 0:02:09]}  h5 {[%clk 0:02:07]} 17. Bf5 {[%clk 0:01:57]}  g6 {[%clk 0:02:01]} 18. Bxc8 {[%clk 0:01:56]}  Qxc8 {[%clk 0:02:00]} 19. e4 {[%clk 0:01:47]}  h4 {[%clk 0:01:53]} 20. Nf1 {[%clk 0:01:39]}  h3 {[%clk 0:01:48]} 21. e5 {[%clk 0:01:24]}  Qg4 {[%clk 0:01:43]} 22. Ne3 {[%clk 0:01:18]}  Qg5 {[%clk 0:01:35]} 23. exf6 {[%clk 0:01:12]}  Ne6 {[%clk 0:01:33]} 24. g3 {[%clk 0:01:02]}  Qxf6 {[%clk 0:01:26]} 25. Qd3 {[%clk 0:00:46]}  Qf3 {[%clk 0:01:13]} 26. Qe2 {[%clk 0:00:39]}  Qf6 {[%clk 0:01:02]} 27. Qd3 {[%clk 0:00:17]}  Qf3 {[%clk 0:00:54]} 28. Qe2 {[%clk 0:00:15]}  Qf6 {[%clk 0:00:54]} 29. Qd3 {[%clk 0:00:14]} 1/2-1/2

[Event "January 9 Early 2024"]
[Site "https://www.chess.com"]
[Date "2024.01.11"]
[Round "3"]
[White "Matta, Nicholas"]
[Black "Prudnykova, Olga"]
[Result "1-0"]
[Board "85"]
[TimeControl "180+1"]
[WhiteFideId "30914523"]
[BlackFideId "14121093"]
[WhiteElo "2524"]
[BlackElo "2270"]
[WhiteTeam "USA"]
[BlackTeam "ISL"]
[WhiteClock "0:01:18"]
[BlackClock "0:00:27"]

1. Nf3 {[%clk 0:03:00]}  Nf6 {[%clk 0:02:57]} 2. g3 {[%clk 0:02:59]}  g6 {[%clk 0:02:58]} 3. b3 {[%clk 0:02:59]}  Bg7 {[%clk 0:02:57]} 4. Bb2 {[%clk 0:03:00]}  O-O {[%clk 0:02:56]} 5. Bg2 {[%clk 0:03:00]}  d5 {[%clk 0:02:56]} 6. c4 {[%clk 0:02:59]}  c5 {[%clk 0:02:55]} 7. cxd5 {[%clk 0:02:59]}  Nxd5 {[%clk 0:02:55]} 8. Bxg7 {[%clk 0:02:59]}  Kxg7 {[%clk 0:02:56]} 9. O-O {[%clk 0:03:00]}  f6 {[%clk 0:02:56]} 10. Qc1 {[%clk 0:02:57]}  b6 {[%clk 0:02:52]} 11. d4 {[%clk 0:02:57]}  cxd4 {[%clk 0:02:43]} 12. Nxd4 {[%clk 0:02:58]}  e6 {[%clk 0:02:27]} 13. Nc3 {[%clk 0:02:57]}  Qd7 {[%clk 0:02:08]} 14. Rd1 {[%clk 0:02:55]}  Qf7 {[%clk 0:02:03]} 15. Nxd5 {[%clk 0:02:15]}  exd5 {[%clk 0:02:03]} 16. e4 {[%clk 0:02:16]}  Bb7 {[%clk 0:01:47]} 17. Qf4 {[%clk 0:01:53]}  dxe4 {[%clk 0:01:39]} 18. Bxe4 {[%clk 0:01:53]}  Bxe4 {[%clk 0:01:39]} 19. Qxe4 {[%clk 0:01:54]}  Nd7 {[%clk 0:01:29]} 20. Ne6+ {[%clk 0:01:53]}  Kh8 {[%clk 0:01:23]} 21. Nxf8 {[%clk 0:01:52]}  Rxf8 {[%clk 0:01:23]} 22. Qb7 {[%clk 0:01:52]}  Ne5 {[%clk 0:01:16]} 23. Qxf7 {[%clk 0:01:52]}  Rxf7 {[%clk 0:01:17]} 24. Rd8+ {[%clk 0:01:48]}  Kg7 {[%clk 0:01:16]} 25. Rad1 {[%clk 0:01:49]}  g5 {[%clk 0:01:15]} 26. f4 {[%clk 0:01:46]}  Nf3+ {[%clk 0:00:52]} 27. Kg2 {[%clk 0:01:42]}  g4 {[%clk 0:00:51]} 28. R1d7 {[%clk 0:01:36]}  Ne1+ {[%clk 0:00:50]} 29. Kf1 {[%clk 0:01:36]}  Nf3 {[%clk 0:00:47]} 30. Rxf7+ {[%clk 0:01:34]}  Kxf7 {[%clk 0:00:47]} 31. Rd7+ {[%clk 0:01:34]}  Kg6 {[%clk 0:00:48]} 32. Rxa7 {[%clk 0:01:25]}  Nxh2+ {[%clk 0:00:47]} 33. Kg2 {[%clk 0:01:25]}  Nf3 {[%clk 0:00:46]} 34. Rb7 {[%clk 0:01:25]}  Ne1+ {[%clk 0:00:46]} 35. Kf1 {[%clk 0:01:25]}  Nc2 {[%clk 0:00:44]} 36. Rxb6 {[%clk 0:01:23]}  h5 {[%clk 0:00:44]} 37. a4 {[%clk 0:01:22]}  Ne3+ {[%clk 0:00:34]} 38. Ke2 {[%clk 0:01:18]}  Nf5 {[%clk 0:00:32]} 39. Kf2 {[%clk 0:01:17]}  h4 {[%clk 0:00:31]} 40. gxh4 {[%clk 0:01:17]}  Nxh4 {[%clk 0:00:30]} 41. a5 {[%clk 0:01:17]}  Kf5 {[%clk 0:00:28]} 42. a6 {[%clk 0:01:17]}  Kxf4 {[%clk 0:00:28]} 43. Rb4+ {[%clk 0:01:17]}  Kg5 {[%clk 0:00:27]} 44. a7 {[%clk 0:01:18]} 1-0